bitfinex-derivatives/quotes_SOLF0:USTF0_20260308
["timestamp","ask_amount","ask_price","bid_price","bid_amount"]
[1772987592980,3.99835198,81.682,81.64,3.9906639]
[1772987593180,3.99835198,81.682,81.641,3.75828186]
[1772987593979,11.017,81.69,81.641,3.75828186]
[1772987594183,15.01535198,81.69,81.641,3.75828186]
[1772987594380,11.018,81.687,81.641,3.75828186]
[1772987594981,11.018,81.687,81.65,3.9906639]
[1772987595887,7.23,81.692,81.651,3.75828186]
[1772987596081,7.23,81.692,81.661,3.75828186]
[1772987596991,7.23,81.692,81.66,3.9906639]
[1772987597495,7.23,81.692,81.651,3.75828186]
[1772987598283,7.23,81.692,81.661,3.75828186]
[1772987598484,8.96788179,81.734,81.68,3.9906639]
[1772987598685,8.96788179,81.734,81.7,3.9906639]
[1772987598890,8.96788179,81.732,81.69,3.9906639]
[1772987599797,11.012,81.731,81.69,3.9906639]
[1772987600798,11.012,81.731,81.662,11.021]
[1772987600799,11.012,81.731,81.7,3.9906639]
[1772987605501,19.91914458,81.731,81.7,3.9906639]
[1772987606102,19.91914458,81.731,81.69,3.9906639]
[1772987609104,8.90714458,81.731,81.7,3.9906639]
[1772987610503,8.90714458,81.731,81.69,3.9906639]
[1772987615806,8.89780524,81.728,81.62,22.054]
[1772987616007,8.89780524,81.728,81.586,30.17462823]
[1772987616008,8.89780524,81.709,81.66,3.9906639]
[1772987616308,8.89780524,81.7,81.65,3.9906639]
[1772987616904,8.89780524,81.7,81.66,3.9906639]
[1772987617110,8.89780524,81.729,81.68,3.9906639]
[1772987617310,8.89780524,81.729,81.603,12.03875138]
[1772987617311,8.89780524,81.729,81.69,3.9906639]
[1772987617809,8.98655568,81.749,81.69,3.9906639]
[1772987618010,8.98655568,81.749,81.7,3.9906639]
[1772987618306,8.98655568,81.744,81.7,3.9906639]
[1772987618711,8.98655568,81.744,81.71,3.9906639]
[1772987618910,8.98655568,81.744,81.7,3.9906639]
[1772987619710,8.98655568,81.74,81.69,3.9906639]
[1772987620805,8.98027792,81.737,81.69,3.9906639]
[1772987621404,8.98027792,81.735,81.7,3.9906639]
[1772987621603,8.98027792,81.735,81.688,11.018]
[1772987621604,8.98027792,81.735,81.69,3.9906639]
[1772987622809,8.98761332,81.733,81.69,3.9906639]
[1772987623605,8.99351022,81.729,81.69,3.9906639]
[1772987624008,8.99351022,81.729,81.68,3.9906639]
[1772987624711,8.99351022,81.727,81.68,3.9906639]
[1772987625011,3.9906639,81.72,81.67,3.9906639]
[1772987625212,8.99351022,81.719,81.66,3.9906639]
[1772987625410,8.99351022,81.705,81.66,3.9906639]
[1772987627015,8.99351022,81.705,81.662,11.021]
[1772987629513,8.99351022,81.705,81.671,11.02]
[1772987630014,8.99351022,81.705,81.622,12.24]
[1772987630015,9.02965881,81.737,81.69,3.99368955]
[1772987630916,9.02965881,81.735,81.69,3.99368955]
[1772987635620,9.02965881,81.735,81.692,11.017]
[1772987636522,9.02965881,81.735,81.69,3.99368955]
[1772987637219,9.02365149,81.733,81.64,42.41462823]
[1772987637419,9.02365149,81.719,81.67,3.99368955]
[1772987638024,9.02345127,81.718,81.66,3.99368955]
[1772987638224,9.02345127,81.709,81.66,3.99368955]
[1772987638525,9.02345127,81.709,81.67,3.99368955]
[1772987639123,9.02345127,81.708,81.67,3.99368955]
[1772987639426,9.02345127,81.708,81.661,11.021]
[1772987640125,3.99368955,81.72,81.66,3.99368955]
[1772987640126,9.00315277,81.702,81.66,3.99368955]
[1772987641524,9.00315277,81.702,81.66,15.01468955]
[1772987641914,9.02243129,81.715,81.68,3.99368955]
[1772987642115,9.02243129,81.715,81.66,3.99368955]
[1772987642319,9.02243129,81.709,81.66,3.99368955]
[1772987643325,9.02246372,81.704,81.66,3.99368955]
[1772987644224,9.02929891,81.679,81.627,11.026]
[1772987644423,13.02298846,81.66,81.6,3.99368955]
[1772987644725,9.02929891,81.659,81.6,3.99368955]
[1772987644914,9.02929891,81.659,81.62,3.99368955]
[1772987645119,11.02,81.672,81.62,3.99368955]
[1772987645120,9.02929891,81.671,81.62,3.99368955]
[1772987645422,9.02929891,81.669,81.62,3.99368955]
[1772987645621,9.02929891,81.669,81.578,12.24]
[1772987645622,9.02929891,81.669,81.61,15.02168955]
[1772987648723,9.02929891,81.669,81.615,11.027]
[1772987649222,9.02929891,81.669,81.62,3.99368955]
[1772987650926,9.02929891,81.669,81.622,11.026]
[1772987654832,9.02929891,81.669,81.63,3.99368955]
[1772987655827,3.99368955,81.69,81.59,62.0]
[1772987655828,9.10401505,81.689,81.65,3.99368955]
[1772987656133,9.10401505,81.689,81.64,3.99368955]
[1772987656537,9.10401505,81.689,81.65,3.99368955]
[1772987658535,7.08,81.688,81.65,3.99368955]
[1772987658739,7.08,81.688,81.66,3.99368955]
[1772987663535,7.08,81.688,81.65,11.023]
[1772987663536,9.11916481,81.687,81.65,3.99368955]
[1772987663940,9.12001634,81.683,81.65,3.99368955]
[1772987666345,7.08,81.688,81.66,3.99368955]
[1772987667741,9.14233348,81.687,81.66,3.99368955]
[1772987670439,9.14233348,81.687,81.65,3.99368955]
[1772987675738,9.14233348,81.687,81.66,3.99368955]
[1772987675943,7.08,81.688,81.67,3.99368955]
[1772987676240,9.15261,81.698,81.67,3.99368955]
[1772987678646,9.15261,81.698,81.66,3.99368955]
[1772987679243,9.15261,81.698,81.615,12.24]
[1772987679546,7.19963284,81.673,81.62,3.99368955]
[1772987679948,7.24355123,81.66,81.62,3.99368955]
[1772987680139,7.24355123,81.66,81.61,3.99368955]
[1772987680344,7.24355123,81.659,81.61,3.99368955]
[1772987680641,7.24355123,81.648,81.61,3.99368955]
[1772987681844,7.24355123,81.648,81.62,3.99368955]
[1772987683642,7.24355123,81.648,81.61,3.99368955]
[1772987684142,7.24355123,81.648,81.598,11.03]
[1772987684349,7.24355123,81.648,81.62,3.99368955]
[1772987685146,7.24355123,81.648,81.61,3.99368955]
[1772987687750,7.22943973,81.645,81.56,62.0]
[1772987687948,7.22943973,81.645,81.61,3.99368955]
[1772987689159,7.22943973,81.645,81.6,3.99368955]
[1772987689860,11.025,81.635,81.6,3.99368955]
[1772987691063,7.22844425,81.634,81.6,3.99368955]
[1772987691459,7.22844425,81.632,81.6,3.99368955]
[1772987691662,7.22844425,81.632,81.6,4.00107045]
[1772987692462,7.19926341,81.629,81.59,4.00107045]
[1772987693160,7.19926341,81.629,81.6,4.00107045]
[1772987693563,7.19926341,81.621,81.58,4.00107045]
[1772987693758,7.18453076,81.639,81.551,30.17462823]
[1772987694063,7.18453076,81.639,81.59,4.00107045]
[1772987694654,7.18453076,81.617,81.58,4.00107045]
[1772987697362,11.027,81.615,81.58,4.00107045]
[1772987697660,299.37094766,81.661,81.523,296.0]
[1772987697661,5.27014826,81.599,81.523,296.0]
[1772987697964,12.10735065,81.628,81.534,11.038]
[1772987697965,5.27014826,81.589,81.534,11.038]
[1772987698262,5.27014826,81.589,81.55,4.00107045]
[1772987698764,5.27014826,81.588,81.54,4.00107045]
[1772987699153,5.27014826,81.588,81.476,322.58440313]
[1772987699357,472.67409635,81.615,81.476,322.58440313]
[1772987699358,5.27014826,81.569,81.476,322.58440313]
[1772987699566,5.27014826,81.569,81.53,4.00107045]
[1772987700667,5.21330865,81.557,81.485,11.045]
[1772987700854,5.21330865,81.557,81.52,4.00107045]
[1772987701054,5.21330865,81.589,81.54,4.00107045]
[1772987701661,5.21330865,81.589,81.55,4.00107045]
[1772987701862,5.21330865,81.589,81.56,4.00107045]
[1772987702165,5.35388074,81.614,81.486,2.1342819]
[1772987702366,5.35388074,81.614,81.58,4.00107045]
[1772987702563,5.35388074,81.614,81.544,11.037]
[1772987702764,5.35388074,81.614,81.57,4.00107045]
[1772987702965,5.35386278,81.629,81.59,4.00107045]
[1772987703564,5.35386278,81.629,81.6,4.00107045]
[1772987703756,5.35386278,81.629,81.59,4.00107045]
[1772987703960,5.35386278,81.629,81.58,4.00107045]
[1772987704164,5.35386278,81.629,81.59,4.00107045]
[1772987704358,5.35386278,81.629,81.6,4.00107045]
[1772987704766,5.35386278,81.629,81.551,1.50231062]
[1772987705064,4.06448283,81.619,81.57,4.00107045]
[1772987705959,4.06448283,81.612,81.561,3.71398458]
[1772987706160,4.06448283,81.612,81.498,14.54301882]
[1772987706466,4.06448283,81.599,81.54,4.00107045]
[1772987706968,4.06448283,81.589,81.54,4.00107045]
[1772987707167,4.06448283,81.589,81.529,3.71398458]
[1772987707168,4.06448283,81.589,81.55,4.00107045]
[1772987707765,4.06448283,81.609,81.56,4.00107045]
[1772987707967,4.06448283,81.609,81.57,4.00107045]
[1772987709668,4.06448283,81.607,81.57,4.00107045]
[1772987709872,4.06448283,81.607,81.58,4.00107045]
[1772987710172,4.06448283,81.639,81.59,4.00107045]
[1772987710467,4.06448283,81.623,81.58,4.00107045]
[1772987711362,4.06448283,81.623,81.59,4.00107045]
[1772987711565,4.06448283,81.623,81.571,3.71398458]
[1772987711566,11.028,81.615,81.571,3.71398458]
[1772987712069,4.06448283,81.623,81.571,3.71398458]
[1772987714878,4.06448283,81.621,81.571,3.71398458]
[1772987715874,11.027,81.62,81.571,3.71398458]
[1772987716374,11.028,81.612,81.571,3.71398458]
[1772987719177,11.029,81.604,81.571,3.71398458]
[1772987720384,11.027,81.617,81.571,3.71398458]
[1772987720773,4.06448283,81.62,81.571,3.71398458]
[1772987720980,8.11,81.622,81.581,3.71398458]
[1772987722076,12.17448283,81.622,81.581,3.71398458]
[1772987723784,8.11,81.622,81.581,3.71398458]
[1772987724783,8.11,81.622,81.584,3.71398458]
[1772987725787,8.11,81.622,81.586,3.71398458]
[1772987726388,8.11,81.622,81.589,11.031]
[1772987727085,8.11,81.622,81.589,14.74498458]
[1772987727292,8.11,81.622,81.59,3.71398458]
[1772987727889,8.11,81.622,81.593,11.03]
[1772987728792,8.11,81.622,81.595,14.74398458]
[1772987729388,4.06448283,81.621,81.58,11.032]
[1772987729687,4.06448283,81.621,81.571,3.71398458]
[1772987730184,4.06448283,81.619,81.551,3.71398458]
[1772987731394,8.11,81.622,81.551,3.71398458]
[1772987731395,4.06448283,81.617,81.56,11.035]
[1772987731592,4.06448283,81.617,81.58,4.003296]
[1772987732490,4.06448283,81.615,81.571,3.71398458]
[1772987733191,4.09611479,81.611,81.58,4.003296]
[1772987733393,4.09611479,81.611,81.57,4.003296]
[1772987733795,4.09611479,81.609,81.56,4.003296]
[1772987734086,4.003296,81.6,81.544,3.80274872]
[1772987734294,8.11,81.622,81.495,22.088]
[1772987734295,4.09611479,81.589,81.54,4.003296]
[1772987734493,4.09611479,81.587,81.531,3.80274872]
[1772987734695,4.09611479,81.579,81.531,3.80274872]
[1772987735696,4.09611479,81.567,81.51,4.003296]
[1772987735890,4.09611479,81.567,81.53,4.003296]
[1772987736291,4.09611479,81.564,81.52,4.003296]
[1772987736593,4.09611479,81.559,81.51,4.003296]
[1772987737193,4.09611479,81.554,81.51,4.003296]
[1772987737588,4.09611479,81.554,81.52,4.003296]
[1772987738391,4.09611479,81.57,81.521,3.80274872]
[1772987738593,4.09611479,81.57,81.53,4.003296]
[1772987738994,4.09611479,81.557,81.51,4.003296]
[1772987739392,4.09611479,81.519,81.475,3.80274872]
[1772987739591,4.003296,81.51,81.46,5.21493882]
[1772987739895,4.003296,81.52,81.461,5.24624556]
[1772987740192,4.003296,81.56,81.5,4.003296]
[1772987740398,4.003296,81.56,81.51,4.003296]
[1772987740595,11.035,81.559,81.51,4.003296]
[1772987740898,4.003296,81.56,81.501,5.24624556]
[1772987741196,11.036,81.55,81.51,4.003296]
[1772987741494,22.056,81.614,81.51,4.003296]
[1772987741697,4.003296,81.56,81.51,4.003296]
[1772987742088,4.003296,81.56,81.495,5.24624556]
[1772987742292,11.036,81.555,81.51,4.003296]
[1772987742997,4.003296,81.55,81.49,4.003296]
[1772987743196,4.003296,81.54,81.49,4.003296]
[1772987743797,4.003296,81.55,81.49,4.003296]
[1772987744504,4.003296,81.55,81.48,5.31506929]
[1772987744505,11.038,81.536,81.5,4.003296]
[1772987744702,4.003296,81.55,81.49,4.003296]
[1772987745395,11.30392709,81.609,81.48,5.31506929]
[1772987745396,4.003296,81.54,81.48,5.31506929]
[1772987745594,4.003296,81.54,81.48,4.003296]
[1772987745804,171.542,81.617,81.465,5.32782695]
[1772987745805,4.003296,81.53,81.47,4.003296]
[1772987745999,11.042,81.51,81.47,4.003296]
[1772987746298,4.003296,81.52,81.47,4.003296]
[1772987746502,4.003296,81.52,81.46,4.003296]
[1772987746696,4.003296,81.52,81.448,5.28957959]
[1772987746697,11.043,81.5,81.448,5.28957959]
[1772987747002,11.043,81.5,81.47,4.003296]
[1772987747200,4.003296,81.5,81.426,7.29122759]
[1772987747398,4.003296,81.5,81.45,4.003296]
[1772987747598,304.77804753,81.537,81.441,7.29122759]
[1772987747599,10.03800831,81.53,81.441,7.29122759]
[1772987747897,10.03800831,81.53,81.43,10.03800831]
[1772987748097,10.03800831,81.53,81.431,7.28628597]
[1772987748298,304.77804753,81.537,81.431,7.28628597]
[1772987748495,304.77804753,81.537,81.451,7.28628597]
[1772987749506,11.041,81.513,81.451,7.28628597]
[1772987750103,11.04,81.524,81.451,7.28628597]
[1772987750707,11.04,81.524,81.454,7.38226661]
[1772987751101,11.041,81.516,81.454,7.38226661]
[1772987752109,11.039,81.528,81.471,7.38189877]
[1772987753307,304.77804753,81.537,81.471,7.38189877]
[1772987754300,11.039,81.527,81.471,7.38189877]
[1772987754504,22.064,81.582,81.471,7.38189877]
[1772987754505,22.068,81.569,81.471,7.38189877]
[1772987755709,11.04,81.52,81.471,7.38189877]
[1772987756105,8.46,81.519,81.471,7.38189877]
[1772987758914,10.03213324,81.5,81.419,7.42794361]
[1772987759117,10.03213324,81.48,81.39,10.03213324]
[1772987759312,0.77144096,81.479,81.38,10.03213324]
[1772987759707,1.08904537,81.451,81.38,10.03213324]
[1772987760217,11.053,81.43,81.38,10.03213324]
[1772987760519,1.08904537,81.451,81.38,10.03213324]
[1772987761218,1.08904537,81.451,81.381,3.80274872]
[1772987761813,11.052,81.431,81.381,3.80274872]
[1772987763206,470.78945648,81.469,81.381,3.80274872]
[1772987763207,11.051,81.441,81.381,3.80274872]
[1772987763411,1.06065724,81.468,81.381,3.80274872]
[1772987764019,11.051,81.442,81.381,3.80274872]
[1772987764215,1.03836813,81.468,81.381,3.80274872]
[1772987764519,470.78945648,81.469,81.421,3.77346573]
[1772987771931,11.045,81.483,81.421,3.77346573]
[1772987772224,1.16592543,81.499,81.401,3.77346573]
[1772987772430,1.16592543,81.499,81.421,3.77346573]
[1772987772830,11.046,81.48,81.421,3.77346573]
[1772987773829,1.16592543,81.485,81.421,3.77346573]
[1772987774729,11.045,81.484,81.424,3.77346573]
[1772987775533,11.045,81.484,81.426,3.77346573]
[1772987775834,1.16592543,81.485,81.426,3.77346573]
[1772987776030,11.044,81.493,81.426,3.77346573]
[1772987776832,11.044,81.493,81.428,3.77346573]
[1772987777936,11.044,81.493,81.43,3.77346573]
[1772987778937,11.044,81.493,81.436,3.77346573]
[1772987779932,1.11947809,81.5,81.441,3.77346573]
[1772987780136,480.47416879,81.516,81.441,3.77346573]
[1772987780336,11.041,81.514,81.456,3.77346573]
[1772987781336,9.54014176,81.519,81.461,3.77346573]
[1772987781641,8.46,81.519,81.461,3.77346573]
[1772987782043,8.46,81.519,81.47,3.77346573]
[1772987782433,8.46,81.519,81.426,22.106]
[1772987782434,0.85822206,81.55,81.483,3.77346573]
[1772987783634,11.89422206,81.55,81.486,3.77346573]
[1772987784039,11.036,81.55,81.486,3.77346573]
[1772987784738,11.036,81.55,81.489,11.044]
[1772987784934,11.036,81.55,81.49,3.77346573]
[1772987785145,11.035,81.559,81.49,3.77346573]
[1772987785344,0.90743046,81.558,81.49,3.77346573]
[1772987785742,11.035,81.557,81.5,3.77346573]
[1772987786838,0.9100889,81.556,81.5,3.77346573]
[1772987787645,11.036,81.555,81.501,3.77346573]
[1772987788045,0.91861182,81.554,81.501,3.77346573]
[1772987789748,11.037,81.547,81.501,3.77346573]
[1772987790848,11.037,81.543,81.501,3.77346573]
[1772987791649,11.9570004,81.543,81.484,3.77346573]
[1772987793354,11.038,81.535,81.484,3.77346573]
[1772987794055,0.91485176,81.534,81.484,3.77346573]
[1772987794550,11.08,81.558,81.451,4.06287737]
[1772987794551,0.91485176,81.527,81.451,4.06287737]
[1772987795355,11.045,81.489,81.431,4.06287737]
[1772987795746,11.95785176,81.497,81.433,4.06287737]
[1772987796354,11.043,81.497,81.433,4.06287737]
[1772987796854,11.043,81.497,81.441,4.06287737]
[1772987797253,11.043,81.497,81.443,4.06287737]
[1772987797858,11.042,81.505,81.443,4.06287737]
[1772987798057,11.042,81.505,81.404,30.00409962]
[1772987798058,0.91653152,81.528,81.451,4.06287737]
[1772987798754,0.91653152,81.545,81.471,4.06287737]
[1772987799249,0.91653152,81.545,81.491,4.06287737]
[1772987799955,11.038,81.54,81.491,4.06287737]
[1772987802255,11.08,81.558,81.491,4.06287737]
[1772987802256,11.036,81.55,81.491,4.06287737]
[1772987802450,11.92206789,81.55,81.491,4.06287737]
[1772987802653,0.88606789,81.549,81.491,4.06287737]
[1772987803852,11.94087429,81.538,81.491,4.06287737]
[1772987805651,11.039,81.532,81.491,4.06287737]
[1772987805856,0.8990766,81.531,81.475,4.06287737]
[1772987806756,0.8990766,81.531,81.476,4.06287737]
[1772987809053,11.038,81.537,81.481,4.06287737]
[1772987809962,0.95370633,81.545,81.491,4.06287737]
[1772987810258,11.08,81.558,81.491,4.06287737]
[1772987811152,11.08,81.558,81.511,4.06287737]
[1772987811454,0.9643429,81.557,81.51,10.03213324]
[1772987811958,0.9643429,81.557,81.497,4.06287737]
[1772987812763,11.037,81.548,81.497,4.06287737]
[1772987813852,12.06039028,81.548,81.497,4.06287737]
[1772987814058,1.02339028,81.545,81.497,4.06287737]
[1772987814558,11.08,81.558,81.465,322.87079741]
[1772987814559,1.02339028,81.532,81.481,4.06287737]
[1772987815956,11.039,81.528,81.481,4.06287737]
[1772987816958,11.038,81.537,81.481,15.10787737]
[1772987817260,1.02855542,81.553,81.482,4.06287737]
[1772987817655,11.037,81.545,81.485,4.06287737]
[1772987818153,11.037,81.545,81.489,4.06287737]
[1772987818564,12.11623947,81.545,81.489,4.06287737]
[1772987819761,12.11623947,81.545,81.491,4.06287737]
[1772987820854,12.11623947,81.545,81.493,4.06287737]
[1772987821255,1.07923947,81.545,81.493,4.06287737]
[1772987821866,11.038,81.54,81.493,4.06287737]
[1772987822566,1.17210968,81.532,81.48,10.02522704]
[1772987822766,1.17210968,81.532,81.481,3.70843947]
[1772987823269,1.16921448,81.514,81.464,3.70843947]
[1772987824062,1.14814415,81.51,81.464,3.70843947]
[1772987824263,1.14814415,81.543,81.466,3.70843947]
[1772987824463,1.14916954,81.481,81.432,30.48658159]
[1772987824658,1.14916954,81.481,81.433,3.86102023]
[1772987824957,1.14918859,81.496,81.433,3.86102023]
[1772987825565,1.14918859,81.492,81.435,3.86102023]
[1772987825768,1.14918859,81.492,81.421,3.86102023]
[1772987826161,11.046,81.476,81.421,3.86102023]
[1772987826365,1.0149446,81.479,81.421,3.86102023]
[1772987826572,1.0149446,81.519,81.421,3.86102023]
[1772987827474,1.0149446,81.501,81.441,3.86102023]
[1772987828369,0.96798441,81.498,81.442,3.86102023]
[1772987829772,11.043,81.497,81.442,3.86102023]
[1772987830076,0.96283014,81.496,81.422,3.86102023]
[1772987830271,0.96283014,81.468,81.406,3.86102023]
[1772987831075,11.048,81.463,81.408,3.86102023]
[1772987833575,0.96283014,81.468,81.411,3.86102023]
[1772987834481,12.01896447,81.466,81.411,3.86102023]
[1772987834679,0.97096447,81.465,81.411,3.86102023]
[1772987835984,11.047,81.471,81.411,3.86102023]
[1772987836484,0.99959492,81.479,81.414,3.86102023]
[1772987837077,0.99959492,81.469,81.414,3.86102023]
[1772987837884,11.048,81.463,81.414,3.86102023]
[1772987838083,0.99959492,81.469,81.414,3.86102023]
[1772987840083,0.99959492,81.469,81.401,3.86102023]
[1772987841083,12.08758712,81.464,81.402,3.86102023]
[1772987841279,1.03958712,81.463,81.402,3.86102023]
[1772987841482,1.03958712,81.463,81.413,3.86102023]
[1772987841886,11.047,81.472,81.415,3.86102023]
[1772987842077,1.04211639,81.478,81.392,326.02445112]
[1772987842078,1.04211639,81.478,81.421,3.86102023]
[1772987843586,11.046,81.476,81.423,3.86102023]
[1772987844086,1.04211639,81.478,81.429,3.86102023]
[1772987845288,1.01661457,81.476,81.42,10.02522704]
[1772987845487,1.01661457,81.476,81.417,3.86102023]
[1772987845879,1.04502152,81.47,81.417,3.86102023]
[1772987847891,11.048,81.46,81.417,3.86102023]
[1772987848586,12.0524116,81.46,81.417,3.86102023]
[1772987850794,11.049,81.456,81.417,3.86102023]
[1772987852597,1.02210186,81.472,81.421,3.86102023]
[1772987853393,11.047,81.469,81.421,3.86102023]
[1772987853592,1.02232956,81.468,81.421,3.86102023]
[1772987853994,1.02551535,81.458,81.405,3.90385325]
[1772987854496,11.051,81.438,81.405,3.90385325]
[1772987854701,12.07651535,81.438,81.392,3.90385325]
[1772987856499,1.02551535,81.438,81.393,3.90385325]
[1772987856802,0.97937866,81.468,81.401,3.90385325]
[1772987857795,11.05,81.448,81.402,3.90385325]
[1772987859000,0.98844348,81.447,81.402,3.90385325]
[1772987859199,0.98844348,81.46,81.402,3.90385325]
[1772987859401,12.03744348,81.46,81.404,3.90385325]
[1772987859806,1.05420944,81.459,81.404,3.90385325]
[1772987860196,1.05420944,81.459,81.406,11.056]
[1772987860399,1.05420944,81.459,81.407,3.90385325]
[1772987860999,1.05420944,81.459,81.413,3.90385325]
[1772987861502,11.049,81.456,81.413,3.90385325]
[1772987862596,1.05420944,81.459,81.416,3.90385325]
[1772987865302,11.047,81.469,81.421,3.90385325]
[1772987868007,11.047,81.469,81.423,3.90385325]
[1772987868207,1.06706815,81.472,81.423,3.90385325]
[1772987869105,11.047,81.471,81.426,14.95685325]
[1772987869301,11.047,81.471,81.427,3.90385325]
[1772987871511,1.05570353,81.47,81.427,3.90385325]
[1772987871716,1.05570353,81.466,81.42,10.02522704]
[1772987871907,1.05570353,81.466,81.42,13.92908029]
[1772987872104,11.07,81.465,81.421,3.90385325]
[1772987874215,11.07,81.465,81.426,3.90385325]
[1772987874417,11.045,81.485,81.426,3.90385325]
[1772987875209,1.06200883,81.492,81.441,3.90385325]
[1772987875408,11.044,81.493,81.441,3.90385325]
[1772987877622,12.10050865,81.49,81.441,3.90385325]
[1772987878525,11.044,81.49,81.441,3.90385325]
[1772987879122,494.07533249,81.499,81.441,3.90385325]
[1772987879321,1.06141173,81.498,81.441,3.90385325]
[1772987879827,1.06141173,81.498,81.443,3.90385325]
[1772987881628,1.06141173,81.498,81.46,4.01409096]
[1772987882534,1.06141173,81.498,81.411,3.90385325]
[1772987882726,1.07110133,81.467,81.421,3.8548615]
[1772987882929,1.07110133,81.467,81.431,3.8548615]
[1772987883626,1.07110133,81.498,81.44,4.01409096]
[1772987883830,1.20840034,81.489,81.44,4.01409096]
[1772987884428,1.20840034,81.489,81.441,3.8548615]
[1772987885233,1.20840034,81.489,81.45,4.01409096]
[1772987885836,12.25340034,81.489,81.45,4.01409096]
[1772987886836,1.20840034,81.489,81.46,4.01409096]
[1772987887035,493.01392076,81.499,81.46,4.01409096]
[1772987887435,494.23021977,81.499,81.46,4.01409096]
[1772987887632,1.21629901,81.498,81.46,4.01409096]
[1772987888931,493.01392076,81.499,81.43,4.01409096]
[1772987888932,1.21448564,81.489,81.43,4.01409096]
[1772987889332,1.21448564,81.489,81.431,3.99998281]
[1772987889834,11.046,81.478,81.431,15.05198281]
[1772987890031,11.046,81.478,81.432,3.99998281]
[1772987891539,1.21448564,81.489,81.432,3.99998281]
[1772987892940,1.21448564,81.489,81.44,4.01409096]
[1772987893340,1.21448564,81.489,81.44,8.01407377]
[1772987893838,12.32673697,81.487,81.441,3.99998281]
[1772987894044,1.28173697,81.486,81.441,3.99998281]
[1772987894541,1.28173697,81.472,81.43,4.01409096]
[1772987894739,1.28173697,81.472,81.421,3.99998281]
[1772987895441,1.28173697,81.484,81.431,3.99998281]
[1772987895636,1.28173697,81.484,81.441,3.99998281]
[1772987895839,1.3017743,81.498,81.441,3.99998281]
[1772987896039,11.044,81.495,81.451,3.99998281]
[1772987896936,1.3017743,81.498,81.451,3.99998281]
[1772987898340,493.01392076,81.499,81.461,3.99998281]
[1772987898646,12.3,81.499,81.471,3.99998281]
[1772987901642,1.24305446,81.524,81.48,4.01409096]
[1772987902542,1.27607206,81.52,81.471,3.99998281]
[1772987902741,1.27607206,81.519,81.471,3.99998281]
[1772987904348,1.27607206,81.519,81.472,3.99998281]
[1772987906145,1.20785122,81.518,81.472,3.99998281]
[1772987906942,1.20785122,81.511,81.472,3.99998281]
[1772987907149,1.20785122,81.511,81.46,8.01407377]
[1772987907645,1.20785122,81.509,81.461,15.04798281]
[1772987908651,1.21106764,81.504,81.461,3.99998281]
[1772987911445,1.26377813,81.495,81.449,3.99998281]
[1772987911644,1.26377813,81.495,81.45,3.99998281]
[1772987913254,1.26377813,81.495,81.451,3.72476222]
[1772987918657,1.26377813,81.495,81.453,3.72476222]
[1772987919251,4.01409096,81.5,81.398,12.28]
[1772987919252,1.15377115,81.492,81.445,11.05]
[1772987919457,1.15377115,81.492,81.446,3.72476222]
[1772987920954,1.15377115,81.492,81.45,4.01409096]
[1772987921163,1.15377115,81.492,81.451,3.72476222]
[1772987928262,11.044,81.491,81.451,3.72476222]
[1772987929258,11.58,81.53,81.45,4.01409096]
[1772987929259,11.043,81.498,81.453,3.72476222]
[1772987929663,11.043,81.498,81.461,3.72476222]
[1772987931663,1.11972845,81.497,81.461,3.72476222]
[1772987934764,11.044,81.494,81.461,3.72476222]
[1772987935065,12.17422031,81.494,81.461,3.72476222]
[1772987935568,1.13022031,81.494,81.461,3.72476222]
[1772987936272,11.044,81.49,81.461,3.72476222]
[1772987938678,11.043,81.498,81.461,3.72476222]
[1772987940173,12.18011283,81.506,81.461,3.72476222]
[1772987940577,306.5795261,81.529,81.481,3.72476222]
[1772987940770,306.5795261,81.529,81.435,22.104]
[1772987940771,306.5795261,81.529,81.491,3.72476222]
[1772987940974,11.039,81.528,81.491,3.72476222]
[1772987941578,305.43347635,81.529,81.491,3.72476222]
[1772987941778,11.58,81.53,81.491,3.72476222]
[1772987941979,11.58,81.53,81.446,37.62521543]
[1772987941980,11.58,81.53,81.501,3.72476222]
[1772987943475,11.58,81.53,81.51,4.01536411]
[1772987943978,11.58,81.53,81.5,4.01536411]
[1772987948380,11.58,81.53,81.5,7.90243875]
[1772987949488,11.58,81.53,81.501,3.88707464]
[1772987951382,11.58,81.53,81.51,4.01536411]
[1772987951979,11.036,81.554,81.511,3.88707464]
[1772987952180,1.07495897,81.558,81.53,4.01536411]
[1772987953485,1.07495897,81.558,81.521,3.88707464]
[1772987954684,301.86294268,81.577,81.531,3.88707464]
[1772987954881,301.86294268,81.577,81.541,3.88707464]